Workbook

Sheet Sheet2
D1: формула делить 124 OTHERS на два. Хотя 124 OTHERS не имеет подразделов.
E2: формула правильна.
A3: Area name | B3: Mother tongue name | C3: Total | D3: Всего население в Area | E3: % по родным языкам | H3: Дан список териитории штата Индии. Численность носителей родного языка. У каждого языка есть свой подязык. Поэтому в сумме территория дает почти в два раза выше чем на самом деле. Почти употребляется так как 124 OTHERS не повторяется. Надо посчитать процент каждого родного языка по территориям. Для этого надо посчитать сумму каждого Area name.
C4: Population
C5: 1
F6: Формула | G6: Проверка
A7: CHHATTISGARH | B7: 1 ASSAMESE | C7: 1595 | D7: =SUMIF(A:A,A7:A7,C:C)/2 -> 247456 | E7: =C7/D7*100 -> 0.6445590327 | F7: =SUMPRODUCT(Жир) -> 249633 | G7: =C7+C10+C16+C18 -> 249633
A8: CHHATTISGARH | B8: Assamese | C8: 1582 | D8: =SUMIF(A:A,A8:A8,C:C)/2-IF(B8="124 OTHERS",C8,0)/2 -> 247456 | E8: 0.6393055735 | F8: =SUMPRODUCT(Жир) -> 249633
A9: CHHATTISGARH | B9: 1 Others | C9: 13 | D9: 247456 | E9: 0.005253459201 | F9: =SUMPRODUCT(Жир) -> 249633
A10: CHHATTISGARH | B10: 2 BENGALI | C10: 243597 | D10: 247456 | E10: 98.44053084 | F10: =SUMPRODUCT(Жир) -> 249633
A11: CHHATTISGARH | B11: Bengali | C11: 243570 | D11: 247456 | E11: 98.42961981 | F11: =SUMPRODUCT(Жир) -> 249633
A12: CHHATTISGARH | B12: Chakma | C12: 7 | D12: 247456 | E12: 0.002828785724 | F12: =SUMPRODUCT(Жир) -> 249633
A13: CHHATTISGARH | B13: Haijong/Hajong | C13: 4 | D13: 247456 | E13: 0.001616448985 | F13: =SUMPRODUCT(Жир) -> 249633
A14: CHHATTISGARH | B14: Rajbangsi | C14: 1 | D14: 247456 | E14: 0.0004041122462 | F14: =SUMPRODUCT(Жир) -> 249633
A15: CHHATTISGARH | B15: 2 Others | C15: 15 | D15: 247456 | E15: 0.006061683693 | F15: =SUMPRODUCT(Жир) -> 249633
A16: CHHATTISGARH | B16: 3 BODO | C16: 88 | D16: 247456 | E16: 0.03556187767 | F16: =SUMPRODUCT(Жир) -> 249633
A17: CHHATTISGARH | B17: Bodo/Boro | C17: 87 | D17: 247456 | E17: 0.03515776542 | F17: =SUMPRODUCT(Жир) -> 249633
A18: CHHATTISGARH | B18: 124 OTHERS | C18: 4353 | D18: 245279.5 | E18: =C18/D18*100 -> 1.774710076 | F18: =SUMPRODUCT(Жир) -> 249633
A19: Koriya | B19: 1 ASSAMESE | C19: 8 | D19: 361385.5 | E19: 0.002213702542 | F19: =SUMPRODUCT(Жир) -> 628303 | G19: =C19+C21+C23+C25+C28+C40+C42+C45+C47 -> 628303
A20: Koriya | B20: Assamese | C20: 8 | D20: 361385.5 | E20: 0.002213702542 | F20: =SUMPRODUCT(Жир) -> 628303
A21: Koriya | B21: 2 BENGALI | C21: 6112 | D21: 361385.5 | E21: 1.691268742 | F21: =SUMPRODUCT(Жир) -> 628303
A22: Koriya | B22: Bengali | C22: 6112 | D22: 361385.5 | E22: 1.691268742 | F22: =SUMPRODUCT(Жир) -> 628303
A23: Koriya | B23: 4 DOGRI | C23: 15 | D23: 361385.5 | E23: 0.004150692266 | F23: =SUMPRODUCT(Жир) -> 628303
A24: Koriya | B24: Dogri | C24: 15 | D24: 361385.5 | E24: 0.004150692266 | F24: =SUMPRODUCT(Жир) -> 628303
A25: Koriya | B25: 5 GUJARATI | C25: 637 | D25: 361385.5 | E25: 0.1762660649 | F25: =SUMPRODUCT(Жир) -> 628303
A26: Koriya | B26: Gujarati | C26: 366 | D26: 361385.5 | E26: 0.1012768913 | F26: =SUMPRODUCT(Жир) -> 628303
A27: Koriya | B27: 5 Others | C27: 271 | D27: 361385.5 | E27: 0.07498917361 | F27: =SUMPRODUCT(Жир) -> 628303
A28: Koriya | B28: 6 HINDI | C28: 621319 | D28: 361385.5 | E28: 171.9269312 | F28: =SUMPRODUCT(Жир) -> 628303
A29: Koriya | B29: Awadhi | C29: 245 | D29: 361385.5 | E29: 0.06779464035 | F29: =SUMPRODUCT(Жир) -> 628303
A30: Koriya | B30: Bagheli/Baghel Khandi | C30: 30218 | D30: 361385.5 | E30: 8.361707927 | F30: =SUMPRODUCT(Жир) -> 628303
A31: Koriya | B31: Banjari | C31: 29 | D31: 361385.5 | E31: 0.008024671715 | F31: =SUMPRODUCT(Жир) -> 628303
A32: Koriya | B32: Bhagoria | C32: 20752 | D32: 361385.5 | E32: 5.742344394 | F32: =SUMPRODUCT(Жир) -> 628303
A33: Koriya | B33: Bharmauri/Gaddi | C33: 1 | D33: 361385.5 | E33: 0.0002767128178 | F33: =SUMPRODUCT(Жир) -> 628303
A34: Koriya | B34: Bhojpuri | C34: 8240 | D34: 361385.5 | E34: 2.280113618 | F34: =SUMPRODUCT(Жир) -> 628303
A35: Koriya | B35: Brajbhasha | C35: 121 | D35: 361385.5 | E35: 0.03348225095 | F35: =SUMPRODUCT(Жир) -> 628303
A36: Koriya | B36: Bundeli/Bundel khandi | C36: 682 | D36: 361385.5 | E36: 0.1887181417 | F36: =SUMPRODUCT(Жир) -> 628303
A37: Koriya | B37: Chhattisgarhi | C37: 27364 | D37: 361385.5 | E37: 7.571969545 | F37: =SUMPRODUCT(Жир) -> 628303
A38: Koriya | B38: Garhwali | C38: 18 | D38: 361385.5 | E38: 0.00498083072 | F38: =SUMPRODUCT(Жир) -> 628303
A39: Koriya | B39: 22 Others | C39: 1 | D39: 361385.5 | E39: =C39/D39*100 -> 0.0002767128178 | F39: =SUMPRODUCT(Жир) -> 628303
A40: Koriya | B40: 26 ANGAMI | C40: 3 | D40: =SUMIF(A:A,A40:A40,C:C)/2-IF(B40="124 OTHERS",C40,0)/2 -> 361385.5 | E40: 0.0008301384533 | F40: =SUMPRODUCT(Жир) -> 628303
A41: Koriya | B41: Lushai/Mizo | C41: 1 | D41: 361385.5 | E41: =C41/D41*100 -> 0.0002767128178 | F41: =SUMPRODUCT(Жир) -> 628303
A42: Koriya | B42: 91 MUNDA | C42: 12 | D42: 361385.5 | E42: 0.003320553813 | F42: =SUMPRODUCT(Жир) -> 628303
A43: Koriya | B43: Munda | C43: 11 | D43: 361385.5 | E43: 0.003043840995 | F43: =SUMPRODUCT(Жир) -> 628303
A44: Koriya | B44: 91 Others | C44: 1 | D44: 361385.5 | E44: 0.0002767128178 | F44: =SUMPRODUCT(Жир) -> 628303
A45: Koriya | B45: 92 MUNDARI | C45: 12 | D45: 361385.5 | E45: 0.003320553813 | F45: =SUMPRODUCT(Жир) -> 628303
A46: Koriya | B46: Mundari | C46: 12 | D46: 361385.5 | E46: 0.003320553813 | F46: =SUMPRODUCT(Жир) -> 628303
A47: Koriya | B47: 124 OTHERS | C47: 185 | D47: 361293 | E47: 0.05120497768 | F47: =SUMPRODUCT(Жир) -> 628303
A48: Bharatpur | B48: 2 BENGALI | C48: 37 | D48: 67384.5 | E48: 0.05490876982 | F48: =SUMPRODUCT(Жир) -> 88330 | G48: =C48+C50+C53 -> 88330
A49: Bharatpur | B49: Bengali | C49: 37 | D49: 67384.5 | E49: 0.05490876982 | F49: =SUMPRODUCT(Жир) -> 88330
A50: Bharatpur | B50: 5 GUJARATI | C50: 7 | D50: 67384.5 | E50: 0.01038814564 | F50: =SUMPRODUCT(Жир) -> 88330
A51: Bharatpur | B51: Gujarati | C51: 3 | D51: 67384.5 | E51: 0.004452062418 | F51: =SUMPRODUCT(Жир) -> 88330
A52: Bharatpur | B52: 5 Others | C52: 4 | D52: 67384.5 | E52: 0.005936083224 | F52: =SUMPRODUCT(Жир) -> 88330
A53: Bharatpur | B53: 6 HINDI | C53: 88286 | D53: 67384.5 | E53: 131.0182609 | F53: =SUMPRODUCT(Жир) -> 88330
A54: Bharatpur | B54: Awadhi | C54: 1 | D54: 67384.5 | E54: 0.001484020806 | F54: =SUMPRODUCT(Жир) -> 88330
A55: Bharatpur | B55: Bagheli/Baghel Khandi | C55: 25451 | D55: 67384.5 | E55: 37.76981353 | F55: =SUMPRODUCT(Жир) -> 88330
A56: Bharatpur | B56: Banjari | C56: 1 | D56: 67384.5 | E56: 0.001484020806 | F56: =SUMPRODUCT(Жир) -> 88330
A57: Bharatpur | B57: Bhagoria | C57: 20737 | D57: 67384.5 | E57: 30.77413945 | F57: =SUMPRODUCT(Жир) -> 88330
A58: Bharatpur | B58: Bhojpuri | C58: 205 | D58: 67384.5 | E58: 0.3042242652 | F58: =SUMPRODUCT(Жир) -> 88330
A59: Baikunthpur | B59: Koda/Kora | C59: 13 | D59: 7495 | E59: =C59/D59*100 -> 0.173448966 | F59: =SUMPRODUCT(Жир) -> 7498 | G59: =C60+C62+C64+C66+C68 -> 7498
A60: Baikunthpur | B60: 68 KORWA | C60: 198 | D60: 7495 | E60: 2.641761174 | F60: =SUMPRODUCT(Жир) -> 7498
A61: Baikunthpur | B61: Koraku | C61: 198 | D61: 7495 | E61: 2.641761174 | F61: =SUMPRODUCT(Жир) -> 7498
A62: Baikunthpur | B62: 72 KURUKH/ORAON | C62: 7266 | D62: 7495 | E62: 96.94462975 | F62: =SUMPRODUCT(Жир) -> 7498
A63: Baikunthpur | B63: Kurukh/Oraon | C63: 7266 | D63: 7495 | E63: 96.94462975 | F63: =SUMPRODUCT(Жир) -> 7498
A64: Baikunthpur | B64: 91 MUNDA | C64: 6 | D64: 7495 | E64: 0.08005336891 | F64: =SUMPRODUCT(Жир) -> 7498
A65: Baikunthpur | B65: Munda | C65: 6 | D65: 7495 | E65: 0.08005336891 | F65: =SUMPRODUCT(Жир) -> 7498
A66: Baikunthpur | B66: 92 MUNDARI | C66: 9 | D66: 7495 | E66: 0.1200800534 | F66: =SUMPRODUCT(Жир) -> 7498
A67: Baikunthpur | B67: Mundari | C67: 9 | D67: 7495 | E67: 0.1200800534 | F67: =SUMPRODUCT(Жир) -> 7498
A68: Baikunthpur | B68: 124 OTHERS | C68: 19 | D68: 7485.5 | E68: 0.2538240598 | F68: =SUMPRODUCT(Жир) -> 7498
